[Event "22nd ETCC Women 2019"]
[Site "Batumi"]
[Date "2019.10.31"]
[Round "7.2"]
[White "Zawadzka, Jolanta"]
[Black "Lagno, Kateryna"]
[Result "0-1"]
[ECO "C60"]
[WhiteElo "2406"]
[BlackElo "2549"]
[Annotator "ChessBase"]
[PlyCount "116"]
[EventDate "2019.10.24"]
[EventType "team-tourn"]
[EventCountry "GEO"]
[SourceTitle "playchess.com"]
[Source "ChessBase"]
[SourceQuality "1"]
[WhiteTeam "Poland"]
[BlackTeam "Russia"]
[WhiteTeamCountry "POL"]
[BlackTeamCountry "RUS"]
[TimeControl "40/5400+30:1800+30"]

1. e4 {[%emt 0:00:00]} e5 {[%emt 0:00:00]} 2. Nf3 {[%emt 0:00:00]} Nc6 {[%emt 0:00:00]} 3. Bb5 {[%emt 0:00:00]} g6 {[%emt 0:00:00]} 4. c3 {[%emt 0:01:48]} a6 {[%emt 0:00:17]} 5. Ba4 {[%emt 0:00:29]} Bg7 {[%emt 0:00:33]} 6. d4 {[%emt 0:01:14]} exd4 {[%emt 0:00:33]} 7. cxd4 {[%emt 0:00:16]} b5 {[%emt 0:00:17]} 8. Bc2 {[%emt 0:00:42]} d6 {[%emt 0:00:48]} 9. h3 {[%emt 0:05:38]} Nf6 {[%emt 0:01:13]} 10. O-O {[%emt 0:06:26]} O-O {[%emt 0:02:18]} 11. Nc3 {[%emt 0:09:14]} Bb7 {[%emt 0:00:35]} 12. a3 {[%emt 0:01:56]} Re8 {[%emt 0:02:49]} 13. Re1 {[%emt 0:01:09]} Na5 {[%emt 0:11:54]} 14. d5 {[%emt 0:16:36]} c6 {[%emt 0:03:32]} 15. dxc6 {[%emt 0:00:36]} Bxc6 {[%emt 0:00:45]} 16. Rb1 {[%emt 0:09:26]} Nc4 {[%emt 0:20:24]} 17. b3 {[%emt 0:03:20]} Ne5 {[%emt 0:00:13]} 18. Nd4 {[%emt 0:05:55]} Bb7 {[%emt 0:00:33]} 19. Bb2 {[%emt 0:00:16]} Qb6 {[%emt 0:03:36]} 20. Kh1 {[%emt 0:05:05]} Rad8 {[%emt 0:02:37]} 21. Qd2 {[%emt 0:08:09]} d5 {[%emt 0:10:04]} 22. exd5 {[%emt 0:08:24]} Nxd5 {[%emt 0:00:32]} 23. Nxd5 {[%emt 0:00:04]} Bxd5 {[%emt 0:00:02]} 24. f4 {[%emt 0:00:42]} Nc6 {[%emt 0:01:32]} 25. Nxc6 {[%emt 0:02:14]} Rxe1+ {[%emt 0:04:41]} 26. Qxe1 {[%emt 0:03:37]} Qxc6 {[%emt 0:00:14]} 27. Qf2 {[%emt 0:01:43]} Bxb2 {[%emt 0:03:50]} 28. Rxb2 {[%emt 0:00:05]} Qc3 {[%emt 0:00:18]} 29. Bb1 {[%emt 0:02:11]} Qxh3+ {[%emt 0:02:27]} 30. Kg1 {[%emt 0:00:04]} Qc3 {[%emt 0:07:44]} 31. Ba2 {[%emt 0:03:12]} Be6 {[%emt 0:02:54]} 32. b4 {[%emt 0:01:48]} Bxa2 {[%emt 0:09:07]} 33. Rxa2 {[%emt 0:00:04]} h5 {[%emt 0:01:40]} 34. Kh2 {[%emt 0:01:28]} Qf6 {[%emt 0:04:06]} 35. Re2 {[%emt 0:01:52]} Rd4 {[%emt 0:00:18]} 36. g3 {[%emt 0:00:40]} h4 {[%emt 0:00:27]} 37. Qe3 {[%emt 0:00:45]} hxg3+ {[%emt 0:01:08]} 38. Kxg3 {[%emt 0:00:05]} Qd6 {[%emt 0:00:19]} 39. Kg4 {[%emt 0:01:09]} Qd7+ {[%emt 0:00:34]} 40. Kh4 {[%emt 0:00:00]} Qd8+ {[%emt 0:00:00]} 41. Qe7 {[%emt 0:02:13]} Rxf4+ {[%emt 0:02:41]} 42. Kg3 {[%emt 0:05:41]} Qxe7 {[%emt 0:00:26]} 43. Rxe7 {[%emt 0:00:06]} Rc4 {[%emt 0:00:13]} 44. Re3 {[%emt 0:00:27]} Kg7 {[%emt 0:00:08]} 45. Rd3 {[%emt 0:00:07]} f5 {[%emt 0:03:09]} 46. Kf2 {[%emt 0:00:43]} Rc6 {[%emt 0:00:32]} 47. Ke3 {[%emt 0:00:46]} Kf6 {[%emt 0:00:19]} 48. Kf3 {[%emt 0:01:27]} g5 {[%emt 0:00:47]} 49. Kf2 {[%emt 0:01:18]} Ke5 {[%emt 0:00:22]} 50. Ke3 {[%emt 0:00:23]} g4 {[%emt 0:00:16]} 51. a4 {[%emt 0:03:03]} f4+ {[%emt 0:00:54]} 52. Ke2 {[%emt 0:00:13]} Rc2+ {[%emt 0:00:16]} 53. Ke1 {[%emt 0:00:12]} g3 {[%emt 0:01:24]} 54. Kf1 {[%emt 0:01:03]} Ke4 {[%emt 0:00:11]} 55. Rd1 {[%emt 0:00:20]} f3 {[%emt 0:00:34]} 56. axb5 {[%emt 0:00:19]} axb5 {[%emt 0:00:10]} 57. Kg1 {[%emt 0:00:49]} Rg2+ {[%emt 0:00:15]} 58. Kf1 {[%emt 0:00:18]} Rh2 {[%emt 0:00:11]} 0-1

[Event "22nd ETCC Women 2019"]
[Site "Batumi"]
[Date "2019.10.31"]
[Round "7.2"]
[White "Novkovic, Julia"]
[Black "Hrescak, Ivana"]
[Result "1-0"]
[ECO "B91"]
[WhiteElo "2146"]
[BlackElo "2226"]
[Annotator "NA"]
[PlyCount "201"]
[EventDate "2019.10.24"]
[EventType "team-tourn"]
[EventCountry "GEO"]
[SourceTitle "playchess.com"]
[Source "ChessBase"]
[SourceQuality "1"]
[WhiteTeam "Austria"]
[BlackTeam "Slovenia"]
[WhiteTeamCountry "AUT"]
[BlackTeamCountry "SLO"]
[TimeControl "40/5400+30:1800+30"]

1. e4 {[%emt 0:00:00]} c5 {[%emt 0:00:00]} 2. Nf3 {[%emt 0:00:00]} d6 {[%emt 0:00:00]} 3. d4 {[%emt 0:00:00]} cxd4 {[%emt 0:00:00]} 4. Nxd4 {[%emt 0:00:00]} Nf6 {[%emt 0:00:00]} 5. Nc3 {[%emt 0:00:00]} a6 {[%emt 0:00:00]} 6. g3 {[%emt 0:00:10]} e5 {[%emt 0:00:16]} 7. Nde2 {[%emt 0:00:16]} Be7 {[%emt 0:00:48]} 8. Bg2 {[%emt 0:00:05]} Nbd7 {[%emt 0:04:25]} 9. O-O {[%emt 0:01:25]} O-O {[%emt 0:01:25]} 10. a4 {[%emt 0:01:55]} b6 {[%emt 0:00:08]} 11. Nd5 {[%emt 0:04:09]} Nxd5 {[%emt 0:05:10]} 12. Qxd5 {[%emt 0:01:58]} Rb8 {[%emt 0:08:39]} 13. c4 {[%emt 0:07:39]} Nc5 {[%emt 0:09:27]} 14. Qd1 {[%emt 0:01:19]} b5 {[%emt 0:04:30]} 15. cxb5 {[%emt 0:13:37]} axb5 {[%emt 0:00:11]} 16. axb5 {[%emt 0:02:27]} Be6 {[%emt 0:03:53]} 17. Nc3 {[%emt 0:04:14]} Nb3 {[%emt 0:07:47]} 18. Ra7 {[%emt 0:05:42]} Nd4 {[%emt 0:06:50]} 19. Qa4 {[%emt 0:07:28]} Re8 {[%emt 0:06:35]} 20. Be3 {[%emt 0:03:05]} Bb3 {[%emt 0:02:18]} 21. Qa6 {[%emt 0:07:45]} Bc4 {[%emt 0:03:59]} 22. Rd1 {[%emt 0:02:03]} Nxb5 {[%emt 0:08:07]} 23. Nxb5 {[%emt 0:00:24]} Bxb5 {[%emt 0:00:52]} 24. Qa2 {[%emt 0:01:04]} Ra8 {[%emt 0:03:59]} 25. Ra1 {[%emt 0:03:43]} Rxa7 {[%emt 0:01:40]} 26. Qxa7 {[%emt 0:00:39]} Qb8 {[%emt 0:01:53]} 27. Bd2 {[%emt 0:01:59]} Kf8 {[%emt 0:07:14]} 28. Qe3 {[%emt 0:06:01]} Rc8 {[%emt 0:02:33]} 29. Bc3 {[%emt 0:06:47]} Rc6 {[%emt 0:02:57]} 30. h4 {[%emt 0:01:17]} Ra6 {[%emt 0:01:03]} 31. Rc1 {[%emt 0:01:05]} Kg8 {[%emt 0:03:43]} 32. Kh2 {[%emt 0:01:26]} Rc6 {[%emt 0:00:57]} 33. Rd1 {[%emt 0:01:05]} Qb6 {[%emt 0:01:11]} 34. Qd2 {[%emt 0:01:15]} Qb8 {[%emt 0:01:14]} 35. Bf3 {[%emt 0:05:24]} Bc4 {[%emt 0:00:31]} 36. Ra1 {[%emt 0:00:50]} Ra6 {[%emt 0:00:41]} 37. Rxa6 {[%emt 0:01:24]} Bxa6 {[%emt 0:00:01]} 38. Qd5 {[%emt 0:02:52]} Qb5 {[%emt 0:01:18]} 39. Qa8+ {[%emt 0:01:46]} Bf8 {[%emt 0:00:01]} 40. Bg2 {[%emt 0:00:00]} Qb6 {[%emt 0:00:00]} 41. Kg1 {[%emt 0:05:28]} Qb5 {[%emt 0:08:28]} 42. Qd8 {[%emt 0:06:47]} Qc4 {[%emt 0:04:31]} 43. Qb6 {[%emt 0:01:03]} Qd3 {[%emt 0:02:25]} 44. Ba5 {[%emt 0:06:43]} Bc4 {[%emt 0:04:03]} 45. Bc3 {[%emt 0:03:39]} Ba6 {[%emt 0:01:38]} 46. Qc6 {[%emt 0:03:29]} Qd1+ {[%emt 0:02:43]} 47. Kh2 {[%emt 0:00:07]} Qe2 {[%emt 0:00:38]} 48. Bb4 {[%emt 0:03:42]} Bb5 {[%emt 0:07:02]} 49. Qb6 {[%emt 0:00:05]} Qd3 {[%emt 0:00:51]} 50. Ba3 {[%emt 0:01:26]} Ba6 {[%emt 0:00:18]} 51. Qa5 {[%emt 0:02:48]} Bc4 {[%emt 0:01:21]} 52. Qe1 {[%emt 0:00:27]} Bb5 {[%emt 0:01:17]} 53. Qc1 {[%emt 0:00:59]} Ba6 {[%emt 0:00:50]} 54. Qc6 {[%emt 0:01:21]} Bc4 {[%emt 0:00:35]} 55. Qc8 {[%emt 0:00:49]} Ba6 {[%emt 0:00:20]} 56. Qa8 {[%emt 0:01:07]} Bc4 {[%emt 0:00:21]} 57. Qa7 {[%emt 0:00:30]} Qe2 {[%emt 0:00:43]} 58. Qc7 {[%emt 0:00:45]} Qd3 {[%emt 0:00:13]} 59. Qb8 {[%emt 0:00:48]} Ba6 {[%emt 0:00:14]} 60. Qb4 {[%emt 0:00:20]} Qe2 {[%emt 0:00:35]} 61. Qb6 {[%emt 0:00:25]} Qd3 {[%emt 0:00:16]} 62. Qc6 {[%emt 0:00:54]} Bc4 {[%emt 0:00:40]} 63. Qc8 {[%emt 0:00:53]} Ba6 {[%emt 0:00:19]} 64. Qc1 {[%emt 0:00:07]} Qe2 {[%emt 0:00:36]} 65. Qc6 {[%emt 0:00:40]} Qd3 {[%emt 0:00:14]} 66. Qb6 {[%emt 0:01:01]} Bc4 {[%emt 0:00:17]} 67. Qb4 {[%emt 0:00:24]} Qe2 {[%emt 0:00:57]} 68. Qb6 {[%emt 0:00:44]} Qd3 {[%emt 0:00:08]} 69. Qc7 {[%emt 0:00:26]} Ba6 {[%emt 0:00:18]} 70. Qa7 {[%emt 0:00:10]} Bc4 {[%emt 0:00:36]} 71. Qb6 {[%emt 0:00:06]} Ba6 {[%emt 0:00:19]} 72. Bh3 {[%emt 0:00:20]} Bc4 {[%emt 0:00:50]} 73. Bg2 {[%emt 0:00:17]} Ba6 {[%emt 0:00:06]} 74. Qc6 {[%emt 0:00:26]} Bc4 {[%emt 0:00:22]} 75. Qc8 {[%emt 0:00:13]} Ba6 {[%emt 0:00:24]} 76. Qg4 {[%emt 0:00:06]} Bc4 {[%emt 0:00:27]} 77. Qf3 {[%emt 0:00:16]} Qc2 {[%emt 0:01:44]} 78. Qe3 {[%emt 0:00:21]} Qd1 {[%emt 0:00:22]} 79. Bh3 {[%emt 0:00:52]} Qc2 {[%emt 0:00:32]} 80. Bg2 {[%emt 0:00:33]} Qd1 {[%emt 0:00:07]} 81. Bf3 {[%emt 0:00:32]} Qf1 {[%emt 0:00:43]} 82. Bg2 {[%emt 0:00:28]} Qd1 {[%emt 0:00:28]} 83. f4 {[%emt 0:00:10]} exf4 {[%emt 0:01:03]} 84. Qxf4 {[%emt 0:00:13]} Qd4 {[%emt 0:00:50]} 85. Qc1 {[%emt 0:01:27]} Qd3 {[%emt 0:01:20]} 86. Qg5 {[%emt 0:00:35]} Qd4 {[%emt 0:00:38]} 87. Qc1 {[%emt 0:01:13]} Qd3 {[%emt 0:00:08]} 88. Qe1 {[%emt 0:00:34]} Qd4 {[%emt 0:00:19]} 89. Qb4 {[%emt 0:00:52]} Qc5 {[%emt 0:02:02]} 90. Qc3 {[%emt 0:00:17]} Qb5 {[%emt 0:00:24]} 91. Qd4 {[%emt 0:00:49]} Qc6 {[%emt 0:01:35]} 92. Bxd6 {[%emt 0:01:11]} Bxd6 {[%emt 0:00:56]} 93. e5 {[%emt 0:00:02]} Qc5 {[%emt 0:00:08]} 94. Qxd6 {[%emt 0:00:10]} Qxd6 {[%emt 0:00:09]} 95. exd6 {[%emt 0:00:06]} Bb5 {[%emt 0:01:08]} 96. Bf1 {[%emt 0:00:43]} Bc6 {[%emt 0:00:33]} 97. b4 {[%emt 0:00:49]} Kf8 {[%emt 0:00:32]} 98. b5 {[%emt 0:00:13]} Bd7 {[%emt 0:00:36]} 99. b6 {[%emt 0:00:26]} Bc8 {[%emt 0:00:26]} 100. d7 {[%emt 0:00:11]} Bxd7 {[%emt 0:00:07]} 101. b7 {[%emt 0:00:05]} 1-0

[Event "22nd ETCC Women 2019"]
[Site "Batumi"]
[Date "2019.10.31"]
[Round "7.3"]
[White "Gunina, Valentina"]
[Black "Cyfka, Karina"]
[Result "1-0"]
[ECO "C42"]
[WhiteElo "2509"]
[BlackElo "2412"]
[Annotator "ChessBase"]
[PlyCount "155"]
[EventDate "2019.10.24"]
[EventType "team-tourn"]
[EventCountry "GEO"]
[SourceTitle "playchess.com"]
[Source "ChessBase"]
[SourceQuality "1"]
[WhiteTeam "Russia"]
[BlackTeam "Poland"]
[WhiteTeamCountry "RUS"]
[BlackTeamCountry "POL"]
[TimeControl "40/5400+30:1800+30"]

1. e4 {[%emt 0:00:00]} e5 {[%emt 0:00:00]} 2. Nf3 {[%emt 0:00:00]} Nf6 {[%emt 0:00:00]} 3. Nxe5 {[%emt 0:00:00]} d6 {[%emt 0:00:07]} 4. Nf3 {[%emt 0:00:02]} Nxe4 {[%emt 0:00:07]} 5. Bd3 {[%emt 0:00:05]} Nf6 {[%emt 0:03:43]} 6. O-O {[%emt 0:00:54]} Be7 {[%emt 0:01:48]} 7. c3 {[%emt 0:01:20]} O-O {[%emt 0:00:18]} 8. Bc2 {[%emt 0:00:31]} d5 {[%emt 0:06:24]} 9. d4 {[%emt 0:00:50]} Bg4 {[%emt 0:04:55]} 10. Qd3 {[%emt 0:03:28]} Bh5 {[%emt 0:09:20]} 11. Ne5 {[%emt 0:01:16]} Nbd7 {[%emt 0:10:36]} 12. Qh3 {[%emt 0:04:13]} Bg6 {[%emt 0:04:25]} 13. Nxg6 {[%emt 0:01:14]} hxg6 {[%emt 0:00:45]} 14. f4 {[%emt 0:00:45]} Ne4 {[%emt 0:06:56]} 15. f5 {[%emt 0:01:28]} gxf5 {[%emt 0:08:04]} 16. Rxf5 {[%emt 0:01:37]} Ndf6 {[%emt 0:00:19]} 17. Nd2 {[%emt 0:12:05]} g6 {[%emt 0:07:49]} 18. Nxe4 {[%emt 0:01:43]} Nxe4 {[%emt 0:02:23]} 19. Bxe4 {[%emt 0:01:25]} dxe4 {[%emt 0:00:37]} 20. Re5 {[%emt 0:00:54]} Bf6 {[%emt 0:06:34]} 21. Rxe4 {[%emt 0:02:07]} Qd5 {[%emt 0:01:32]} 22. Qf3 {[%emt 0:01:58]} Bg7 {[%emt 0:01:49]} 23. Bf4 {[%emt 0:03:25]} c5 {[%emt 0:03:09]} 24. dxc5 {[%emt 0:02:03]} Qxc5+ {[%emt 0:00:54]} 25. Be3 {[%emt 0:00:42]} Qd5 {[%emt 0:03:47]} 26. Rf1 {[%emt 0:04:04]} Qxa2 {[%emt 0:03:48]} 27. Bc5 {[%emt 0:03:53]} Qxb2 {[%emt 0:10:22]} 28. Re3 {[%emt 0:02:37]} Qb3 {[%emt 0:01:13]} 29. Bxf8 {[%emt 0:00:42]} Rxf8 {[%emt 0:00:19]} 30. h4 {[%emt 0:00:45]} Qb5 {[%emt 0:01:14]} 31. Kh1 {[%emt 0:01:15]} Qc4 {[%emt 0:00:57]} 32. g3 {[%emt 0:02:34]} b5 {[%emt 0:00:19]} 33. Kg2 {[%emt 0:02:37]} b4 {[%emt 0:00:55]} 34. cxb4 {[%emt 0:00:26]} Qxb4 {[%emt 0:00:22]} 35. h5 {[%emt 0:02:54]} gxh5 {[%emt 0:00:57]} 36. Qxh5 {[%emt 0:01:29]} Qb2+ {[%emt 0:00:19]} 37. Re2 {[%emt 0:01:09]} Qb7+ {[%emt 0:00:10]} 38. Kh2 {[%emt 0:01:00]} Qa6 {[%emt 0:00:48]} 39. Qf3 {[%emt 0:01:31]} Qc4 {[%emt 0:00:42]} 40. Re4 {[%emt 0:00:00]} Qc6 {[%emt 0:00:00]} 41. Qe2 {[%emt 0:03:17]} Rb8 {[%emt 0:03:27]} 42. Rg4 {[%emt 0:05:31]} Qh6+ {[%emt 0:03:21]} 43. Kg2 {[%emt 0:01:51]} Qc6+ {[%emt 0:00:34]} 44. Kh3 {[%emt 0:01:44]} Qh6+ {[%emt 0:01:20]} 45. Rh4 {[%emt 0:00:35]} Qg6 {[%emt 0:04:11]} 46. Qc4 {[%emt 0:02:15]} a5 {[%emt 0:02:39]} 47. Rff4 {[%emt 0:03:20]} Qe6+ {[%emt 0:03:27]} 48. Qxe6 {[%emt 0:01:00]} fxe6 {[%emt 0:00:05]} 49. Rc4 {[%emt 0:00:12]} Rb7 {[%emt 0:01:03]} 50. Rhe4 {[%emt 0:00:43]} Kf7 {[%emt 0:00:48]} 51. Rc5 {[%emt 0:00:11]} Rb4 {[%emt 0:03:24]} 52. Re3 {[%emt 0:02:30]} a4 {[%emt 0:04:38]} 53. Rc7+ {[%emt 0:00:36]} Kf6 {[%emt 0:00:26]} 54. Rc6 {[%emt 0:00:22]} Kf7 {[%emt 0:00:27]} 55. Rc7+ {[%emt 0:01:28]} Kf6 {[%emt 0:02:04]} 56. Ra7 {[%emt 0:00:07]} Bh6 {[%emt 0:01:42]} 57. Ra3 {[%emt 0:00:25]} Re4 {[%emt 0:00:40]} 58. R7xa4 {[%emt 0:00:21]} Re1 {[%emt 0:00:25]} 59. Rf3+ {[%emt 0:00:12]} Ke5 {[%emt 0:00:19]} 60. Kg4 {[%emt 0:00:42]} Be3 {[%emt 0:01:22]} 61. Rf7 {[%emt 0:00:51]} Bd4 {[%emt 0:00:56]} 62. Ra5+ {[%emt 0:00:31]} Kd6 {[%emt 0:00:58]} 63. Rf4 {[%emt 0:00:39]} Bc5 {[%emt 0:00:22]} 64. Rc4 {[%emt 0:00:21]} Bb6 {[%emt 0:00:41]} 65. Rb5 {[%emt 0:00:33]} Ba7 {[%emt 0:01:01]} 66. Ra4 {[%emt 0:00:31]} Bc5 {[%emt 0:00:58]} 67. Ra6+ {[%emt 0:00:22]} Kd5 {[%emt 0:00:04]} 68. Ra2 {[%emt 0:00:50]} Kc4 {[%emt 0:00:55]} 69. Rb8 {[%emt 0:00:27]} Bd4 {[%emt 0:00:38]} 70. Ra3 {[%emt 0:01:21]} e5 {[%emt 0:00:21]} 71. Kf5 {[%emt 0:00:31]} Rf1+ {[%emt 0:00:34]} 72. Ke6 {[%emt 0:00:10]} Rg1 {[%emt 0:00:17]} 73. Rc8+ {[%emt 0:00:23]} Kb4 {[%emt 0:00:17]} 74. Rd3 {[%emt 0:00:05]} Bf2 {[%emt 0:00:46]} 75. Rd7 {[%emt 0:01:05]} Kb5 {[%emt 0:02:29]} 76. Rb7+ {[%emt 0:00:13]} Ka6 {[%emt 0:00:06]} 77. Rb2 {[%emt 0:00:18]} Ba7 {[%emt 0:00:55]} 78. Ra8 {[%emt 0:00:28]} 1-0